bitfinex/quotes_SOLUSD_20240813
["timestamp","ask_amount","ask_price","bid_price","bid_amount"]
[1723563407847,6.8507,145.97,145.93,45.0]
[1723563408342,48.7057,145.98,145.92,6.2226]
[1723563408596,6.8526,145.93,145.88,6.5178]
[1723563408969,6.8522,145.94,145.88,6.5178]
[1723563409160,6.8517,145.95,145.88,6.5178]
[1723563409370,31.58,145.96,145.88,6.5178]
[1723563409683,20.0,145.95,145.88,6.5178]
[1723563409859,6.8522,145.94,145.88,6.5178]
[1723563410191,6.8522,145.94,145.91,45.0]
[1723563410550,26.8518,145.95,145.91,45.0]
[1723563411051,6.8521,145.94,145.91,45.0]
[1723563411293,6.8541,145.9,145.88,6.5178]
[1723563411451,6.8541,145.9,145.86,16.0822]
[1723563411851,38.4332,145.92,145.86,16.0822]
[1723563412078,20.0,145.91,145.86,16.0822]
[1723563412257,6.8535,145.91,145.86,16.0822]
[1723563412881,6.8541,145.9,145.86,16.0822]
[1723563413093,6.8546,145.89,145.86,16.0822]
[1723563413386,6.854,145.9,145.86,16.0822]
[1723563413588,6.8536,145.91,145.86,16.0822]
[1723563413886,26.8542,145.9,145.86,16.0822]
[1723563414253,20.0,145.9,145.87,45.0]
[1723563414680,20.0,145.91,145.87,45.0]
[1723563414886,6.8549,145.88,145.86,16.0822]
[1723563415081,6.8549,145.88,145.84,6.3246]
[1723563415893,6.8546,145.89,145.84,6.3246]
[1723563416181,6.8546,145.89,145.85,45.0]
[1723563416388,38.4341,145.9,145.85,45.0]
[1723563416787,6.8545,145.89,145.85,45.0]
[1723563417791,6.8551,145.88,145.85,45.0]
[1723563418088,31.58,145.9,145.85,45.0]
[1723563418254,38.4343,145.9,145.85,45.0]
[1723563418452,6.8545,145.89,145.85,45.0]
[1723563419465,38.4341,145.9,145.85,45.0]
[1723563420197,45.5731905,145.9,145.85,45.0]
[1723563421293,6.8564,145.85,145.82,15.7711]
[1723563421483,6.8571,145.84,145.8,6.5173]
[1723563421682,6.8573,145.83,145.78,15.1313]
[1723563421985,6.8555,145.87,145.78,15.1313]
[1723563422198,20.0,145.86,145.78,15.1313]
[1723563422987,38.4349,145.88,145.79,0.25098]
[1723563423191,20.0,145.87,145.8,6.3297]
[1723563423493,26.8546,145.89,145.81,46.87316679]
[1723563423794,6.8536,145.91,145.83,0.12549]
[1723563424000,6.8541,145.9,145.83,45.50196]
[1723563424286,6.8546,145.89,145.83,45.50196]
[1723563425895,31.58,145.91,145.83,45.50196]
[1723563425896,6.8549,145.88,145.83,45.50196]
[1723563426204,51.58,145.87,145.82,16.6084]
[1723563426382,6.8564,145.85,145.82,16.6084]
[1723563426984,51.58,145.87,145.82,16.6084]
[1723563427988,6.8565,145.85,145.82,16.6084]
[1723563428688,6.856,145.86,145.82,16.6084]
[1723563428990,20.0,145.85,145.82,16.6084]
[1723563429205,20.0,145.85,145.83,45.0]
[1723563429377,26.8566,145.85,145.83,45.0]
[1723563429580,6.8568,145.84,145.83,45.0]
[1723563429971,6.8565,145.85,145.83,45.0]
[1723563430195,6.8565,145.85,145.82,16.6084]
[1723563430776,6.8565,145.85,145.83,45.0]
[1723563431271,6.8569,145.84,145.82,16.6084]
[1723563431496,6.8569,145.84,145.8,6.3297]
[1723563431703,6.8573,145.83,145.78,16.0104]
[1723563432003,6.8588,145.8,145.78,16.0104]
[1723563432473,6.8584,145.81,145.78,16.0104]
[1723563432869,31.58,145.81,145.76,6.3079]
[1723563433107,6.8594,145.79,145.76,6.3079]
[1723563433267,6.8588,145.8,145.76,6.3079]
[1723563434067,38.4382,145.81,145.76,6.3079]
[1723563434270,34.2811,145.86,145.76,6.3079]
[1723563434271,6.8577,145.83,145.77,46.46328707]
[1723563434470,20.0,145.82,145.78,0.12549]
[1723563435476,26.8577,145.82,145.78,0.12549]
[1723563435676,6.8583,145.81,145.77,45.0]
[1723563435907,6.8589,145.8,145.77,45.0]
[1723563436497,6.8583,145.81,145.77,45.0]
[1723563437098,6.8587,145.8,145.77,45.0]
[1723563437405,6.8583,145.81,145.77,45.0]
[1723563437895,20.0,145.82,145.77,45.0]
[1723563438615,45.57641879,145.85,145.78,0.12549]
[1723563438829,31.58,145.88,145.78,1.87346119]
[1723563438992,6.8557,145.87,145.8,0.12549]
[1723563439188,6.8558,145.86,145.8,46.87337361]
[1723563439588,6.8558,145.86,145.8,45.50196]
[1723563439812,6.8554,145.87,145.8,46.8733724]
[1723563440114,31.58,145.88,145.8,45.50196]
[1723563440312,6.8559,145.86,145.8,45.50196]
[1723563441016,48.7125,145.93,145.82,0.12549]
[1723563441226,31.58,145.93,145.82,46.87281453]
[1723563441429,6.8538,145.91,145.84,0.12549]
[1723563441632,6.8543,145.9,145.84,45.37647]
[1723563441787,6.8543,145.9,145.85,0.12549]
[1723563442039,6.8543,145.9,145.85,0.37647]
[1723563442598,6.8536,145.91,145.85,0.37647]
[1723563442903,6.8532,145.92,145.86,0.12549]
[1723563443103,6.8536,145.91,145.86,0.37647]
[1723563444423,7.13386778,145.94,145.86,0.37647]
[1723563444600,6.8517,145.95,145.88,0.12549]
[1723563444916,6.8515,145.96,145.9,0.12549]
[1723563445119,6.8515,145.96,145.9,45.50196]
[1723563445340,6.8508,145.97,145.9,45.50196]
[1723563445621,46.67741614,145.99,145.9,45.50196]
[1723563445622,7.13741614,145.99,145.9,45.50196]
[1723563445835,6.8498,145.99,145.92,0.12549]
[1723563445999,6.8504,145.98,145.92,45.50196]
[1723563446612,7.13586043,146.01,145.92,45.50196]
[1723563446825,6.8496,146.0,145.92,45.50196]
[1723563447215,6.8499,145.99,145.92,45.50196]
[1723563447511,6.8494,146.0,145.92,45.50196]
[1723563447728,20.0,145.99,145.92,45.50196]
[1723563447890,26.8498,145.99,145.92,45.50196]
[1723563449468,17.1162,146.06,145.94,0.12549]
[1723563449729,17.1162,146.06,145.96,0.12549]
[1723563449730,56.6562,146.06,145.96,0.12549]
[1723563449897,6.8482,146.03,145.96,45.50196]
[1723563450297,6.8475,146.04,145.96,45.50196]
[1723563450516,6.847,146.05,145.96,45.50196]
[1723563450905,6.8475,146.04,145.96,45.50196]
[1723563451318,20.0,146.03,145.96,45.50196]
[1723563451824,20.0,146.04,145.96,45.50196]
[1723563452233,7.17110569,146.07,145.98,0.12549]
[1723563452406,0.0411852,146.07,146.0,0.12549]
[1723563452727,0.0411852,146.07,146.02,0.12549]
[1723563452931,0.0411852,146.07,146.02,0.50196]
[1723563453299,0.0411852,146.07,146.02,45.50196]
[1723563453502,0.0411852,146.07,146.04,0.12549]
[1723563453714,0.0411852,146.07,146.04,0.50196]
[1723563454130,0.0411852,146.07,146.04,0.12549]
[1723563454428,0.0411852,146.07,146.03,0.12549]
[1723563454734,0.0411852,146.07,146.01,16.649]
[1723563454735,6.847,146.05,146.01,16.649]
[1723563454919,0.0411852,146.07,146.01,16.649]
[1723563454920,6.8475,146.04,146.01,16.649]
[1723563455313,6.8471,146.05,146.01,16.649]
[1723563455533,6.8474,146.04,146.01,16.649]
[1723563456006,6.847,146.05,146.01,16.649]
[1723563456401,6.8475,146.04,146.01,16.649]
[1723563457331,6.8475,146.04,146.02,45.0]
[1723563458502,6.8498,145.99,145.97,16.4509]
[1723563459513,6.8493,146.0,145.97,16.4509]
[1723563459738,39.54,146.02,145.97,16.4509]
[1723563459939,6.8494,146.0,145.97,16.4509]
[1723563460135,6.8489,146.01,145.97,16.4509]
[1723563460305,17.1206,146.03,145.97,16.4509]
[1723563460306,6.8479,146.03,145.97,16.4509]
[1723563460505,20.0,146.02,145.97,16.4509]
[1723563461027,20.0,146.02,145.98,45.0]
[1723563461336,1.66063536,146.03,145.98,45.0]
[1723563461337,6.849,146.01,145.98,45.0]
[1723563461923,6.8493,146.0,145.98,45.0]
[1723563462124,6.8489,146.01,145.98,45.0]
[1723563462838,39.54,146.02,145.97,16.4509]
[1723563463081,20.0,146.01,145.95,6.3052]
[1723563463231,6.8506,145.98,145.95,6.3052]
[1723563463433,6.8499,145.99,145.95,6.3052]
[1723563463830,6.8503,145.98,145.95,6.3052]
[1723563464440,6.8503,145.98,145.96,45.0]
[1723563465025,6.8503,145.98,145.95,6.3052]
[1723563465341,6.8498,145.99,145.95,6.3052]
[1723563466251,39.54,146.0,145.95,6.3052]
[1723563466460,20.0,146.01,145.96,45.25098]
[1723563466624,20.0,146.01,145.96,45.0]
[1723563466824,39.54,146.02,145.96,45.0]
[1723563467220,20.0,146.01,145.96,45.0]
[1723563468055,6.8494,146.0,145.96,45.0]
[1723563468345,26.8488,146.01,145.96,45.0]
[1723563468850,20.0,146.01,145.96,45.0]
[1723563469046,20.0,146.02,145.96,45.0]
[1723563469557,20.0,146.03,145.96,45.0]
[1723563469922,6.8493,146.0,145.96,45.0]
[1723563470556,6.8498,145.99,145.96,45.0]
[1723563471141,6.8504,145.98,145.96,45.0]
[1723563471850,6.8499,145.99,145.96,45.0]
[1723563472150,39.54,146.0,145.93,15.4763]
[1723563472344,39.54,145.98,145.93,15.4763]
[1723563472548,6.8513,145.96,145.93,15.4763]
[1723563473022,6.8518,145.95,145.93,15.4763]
[1723563473836,6.8521,145.94,145.91,6.5066]
[1723563474043,6.8521,145.94,145.89,16.2735]
[1723563474332,6.8522,145.94,145.89,16.2735]
[1723563474720,6.8518,145.95,145.89,16.2735]
[1723563474922,20.0,145.94,145.9,1.23659058]
[1723563475125,26.8521,145.94,145.89,16.2735]
[1723563475325,20.0,145.94,145.89,16.2735]
[1723563475667,6.8523,145.94,145.9,45.0]
[1723563475829,26.8523,145.94,145.9,45.0]
[1723563476338,20.0,145.94,145.9,45.0]
[1723563477047,26.8521,145.94,145.9,45.0]
[1723563477875,39.54,145.98,145.91,0.12549]
[1723563478077,16.038,146.01,145.91,0.50196]
[1723563478078,39.54,146.0,145.91,0.50196]
[1723563478376,6.8497,145.99,145.91,0.50196]
[1723563478737,6.8502,145.98,145.91,0.50196]
[1723563479061,39.54,146.02,145.91,0.50196]
[1723563479242,6.8496,146.0,145.93,0.12549]
[1723563479442,39.54,146.02,145.93,45.50196]
[1723563479642,6.85,145.99,145.93,45.50196]
[1723563480161,46.67326368,146.02,145.93,45.50196]
[1723563480585,56.6593,146.04,145.95,0.12549]
[1723563480869,20.0,146.03,145.95,45.50196]
[1723563481371,6.8494,146.0,145.95,45.50196]
[1723563481574,6.8497,145.99,145.95,45.12549]
[1723563482061,39.54,146.02,145.95,45.12549]
[1723563482272,26.8492,146.01,145.95,45.12549]
[1723563482641,6.8494,146.0,145.95,45.12549]
[1723563483274,26.8489,146.01,145.95,45.12549]
[1723563484062,6.8494,146.0,145.95,45.12549]
[1723563485155,26.849,146.01,145.95,45.12549]
[1723563485341,6.8493,146.0,145.95,45.12549]
[1723563487244,6.8493,146.0,145.96,0.12549]
[1723563487474,6.8493,146.0,145.96,0.25098]
[1723563487858,6.8493,146.0,145.96,0.12549]
[1723563488258,26.8491,146.01,145.96,0.37647]
[1723563488459,7.13278073,146.04,145.98,6.4562]
[1723563488775,0.0411852,146.07,145.99,45.25098]
[1723563489079,0.0411852,146.07,146.01,15.7882]
[1723563489272,0.0411852,146.07,146.02,45.0]
[1723563489780,6.8874852,146.07,146.02,45.0]
[1723563490093,0.0411852,146.07,146.02,45.0]
[1723563490445,0.0411852,146.07,146.03,0.50196]
[1723563491167,6.8467,146.06,146.03,0.12549]
[1723563491385,6.847,146.05,146.02,45.0]
[1723563491986,6.8465,146.06,146.02,45.0]
[1723563492979,6.8873852,146.07,146.02,45.0]
[1723563493155,6.8465,146.06,146.02,45.0]
[1723563493357,6.8872852,146.07,146.02,45.0]
[1723563493889,0.0411852,146.07,146.03,0.37647]
[1723563494097,0.0411852,146.07,146.04,0.25098]
[1723563494383,6.8871852,146.07,146.03,0.25098]
[1723563494763,6.8871852,146.07,146.03,0.12549]
[1723563494963,0.0411852,146.07,146.03,0.25098]
[1723563495882,0.0411852,146.07,146.04,0.25098]
[1723563496474,0.0411852,146.07,146.03,0.25098]
[1723563496671,0.0411852,146.07,146.01,15.7882]
[1723563496985,6.848,146.03,146.01,15.7882]
[1723563497209,6.8476,146.04,146.01,15.7882]
[1723563497375,31.59,146.06,146.01,15.7882]
[1723563497376,6.8479,146.03,146.01,15.7882]
[1723563498067,6.8479,146.03,145.92,31.59]
[1723563498068,31.59,146.02,145.93,15.0874]
[1723563498396,6.851,145.97,145.93,15.0874]
[1723563498693,6.8521,145.94,145.93,15.0874]
[1723563498912,31.59,145.96,145.92,6.3057]
[1723563499081,6.8518,145.95,145.89,15.0874]
[1723563499265,31.59,145.96,145.89,15.0874]
[1723563499623,6.8528,145.93,145.89,15.0874]
[1723563499790,6.8521,145.94,145.89,15.0874]
[1723563500110,6.8518,145.95,145.89,15.0874]
[1723563500471,6.8513,145.96,145.89,15.0874]
[1723563501405,6.8517,145.95,145.9,0.25098]
[1723563501570,6.8517,145.95,145.9,45.25098]
[1723563501970,6.8512,145.96,145.9,45.25098]
[1723563503008,39.52,145.97,145.9,46.2058873]
[1723563503178,20.0,145.96,145.91,0.25098]
[1723563503384,6.8506,145.98,145.92,0.25098]
[1723563503594,6.8499,145.99,145.93,0.25098]
[1723563503798,6.8494,146.0,145.94,0.12549]
[1723563503994,6.8494,146.0,145.94,0.25098]
[1723563504675,6.8494,146.0,145.95,0.37647]
[1723563504977,6.8494,146.0,145.96,0.12549]
[1723563505175,39.52,146.06,145.97,15.665]
[1723563505395,39.52,146.06,145.98,45.12549]
[1723563506071,6.8488,146.01,145.98,45.12549]
[1723563506275,6.8488,146.01,145.98,45.0]
[1723563506790,6.8484,146.02,145.98,45.0]
[1723563508212,19.08534634,146.07,145.99,0.12549]
[1723563508213,39.52,146.06,145.99,0.12549]
[1723563508419,26.847,146.05,145.99,1.03034009]
[1723563508918,6.8466,146.06,145.99,1.03034009]
[1723563509906,6.8872852,146.07,145.99,1.03034009]
[1723563510214,0.0411852,146.07,145.99,1.03047073]
[1723563510527,0.0411852,146.07,146.03,0.12549]
[1723563510694,0.0411852,146.07,146.03,46.03070972]
[1723563511199,0.0411852,146.07,146.03,45.12549]
[1723563511818,0.0411852,146.07,146.04,0.37647]
[1723563511984,0.0411852,146.07,146.05,0.12549]
[1723563516104,0.0411852,146.07,146.03,45.0]
[1723563516342,0.0411852,146.07,146.02,16.6384]
[1723563516899,6.8473,146.05,146.02,16.6384]
[1723563517105,6.8466,146.06,146.02,16.6384]
[1723563517409,6.8871852,146.07,146.02,16.6384]
[1723563518320,6.8871852,146.07,146.03,45.0]
[1723563518498,0.0411852,146.07,146.02,16.6384]
[1723563518816,6.8489,146.01,145.98,16.3979]
[1723563519017,6.8496,146.0,145.98,16.3979]
[1723563519322,6.8502,145.98,145.94,16.3979]
[1723563519519,6.8499,145.99,145.94,16.3979]
[1723563520015,6.8499,145.99,145.92,6.059]
[1723563520214,39.52,146.01,145.92,6.059]
[1723563520215,6.8504,145.98,145.92,6.059]
[1723563520419,39.52,146.01,145.92,6.059]
[1723563520602,26.8494,146.0,145.92,6.059]
[1723563520803,26.8494,146.0,145.93,0.83405053]
[1723563521286,26.8494,146.0,145.93,45.83405053]
[1723563521488,6.8489,146.01,145.94,0.50196]
[1723563521691,20.0,146.0,145.94,0.50196]
[1723563522827,20.0,146.01,145.94,0.50196]
[1723563523114,26.8489,146.01,145.94,0.50196]
[1723563523321,26.8489,146.01,145.94,0.25098]
[1723563523322,20.0,146.01,145.94,0.25098]
[1723563523522,39.52,146.0,145.92,6.059]
[1723563523816,21.66063536,145.99,145.92,6.059]
[1723563524115,6.8507,145.97,145.92,6.059]
[1723563524494,6.8514,145.96,145.92,6.059]
[1723563524920,20.0,145.99,145.93,45.12549]
[1723563525101,20.0,145.99,145.94,0.12549]
[1723563525411,20.0,146.01,145.94,0.37647]
[1723563525813,26.8492,146.01,145.95,0.12549]
[1723563525995,6.8494,146.0,145.95,0.25098]
[1723563526195,20.0,145.99,145.95,0.25098]
[1723563526814,26.8498,145.99,145.95,0.25098]
[1723563527928,6.8503,145.98,145.94,0.25098]
[1723563528417,26.8498,145.99,145.94,0.12549]
[1723563528588,6.8488,146.02,145.95,0.12549]
[1723563528803,24.25362742,146.04,145.95,0.25098]
[1723563528804,6.848,146.03,145.95,0.25098]
[1723563529003,6.848,146.03,145.97,0.12549]
[1723563529201,6.848,146.03,145.97,0.25098]
[1723563529503,6.848,146.03,145.98,0.12549]
[1723563529705,6.848,146.03,145.98,0.25098]
[1723563529925,6.8475,146.04,145.98,16.79557]
[1723563530105,6.8473,146.05,145.99,0.12549]
[1723563530306,6.8469,146.05,145.99,45.37647]
[1723563530627,0.0411852,146.07,146.01,0.12549]
[1723563530804,0.0411852,146.07,146.01,45.50196]
[1723563531004,0.0411852,146.07,146.02,1.36872599]
[1723563531308,0.0411852,146.07,146.01,45.50196]
[1723563531512,0.0411852,146.07,146.02,1.36801697]
[1723563531719,0.0411852,146.07,146.03,0.50196]
[1723563531901,0.0411852,146.07,146.04,0.12549]
[1723563532097,0.0411852,146.07,146.01,45.0]
[1723563532323,0.0411852,146.07,146.02,0.25098]
[1723563532507,0.0411852,146.07,146.03,0.12549]
[1723563532706,0.0411852,146.07,146.03,0.25098]
[1723563532900,20.0411852,146.07,146.02,0.12549]
[1723563533106,1.70182056,146.07,146.01,45.0]
[1723563533424,6.8467,146.06,146.02,0.12549]
[1723563533725,6.8469,146.05,146.02,0.12549]
[1723563533927,6.8475,146.04,146.01,45.0]
[1723563534911,6.8471,146.05,146.01,45.0]
[1723563537823,0.0411852,146.07,146.01,45.0]
[1723563538033,6.8465,146.06,146.01,45.0]
[1723563539234,6.8465,146.06,146.02,0.12549]
[1723563539531,6.847,146.05,146.01,45.0]
[1723563539915,6.8474,146.04,146.01,45.0]
[1723563540235,0.0411852,146.07,146.01,45.0]
[1723563540439,26.8873852,146.07,146.01,45.0]
[1723563540740,6.8469,146.05,146.01,45.0]
[1723563541537,6.8466,146.06,146.01,45.0]
[1723563541826,20.0411852,146.07,146.02,0.25098]
[1723563542035,20.0411852,146.07,146.02,0.37647]
[1723563542234,6.8871852,146.07,146.02,0.12549]
[1723563542833,6.8465,146.06,146.02,0.12549]
[1723563543233,0.0411852,146.07,146.01,45.0]
[1723563543234,1.70182056,146.07,146.01,45.0]
[1723563543425,21.70182056,146.07,146.02,0.12549]
[1723563543631,6.8471,146.05,146.02,0.12549]
[1723563544642,6.8465,146.06,146.02,0.12549]
[1723563545162,26.8873852,146.07,146.02,0.12549]
[1723563545315,20.0411852,146.07,146.02,0.50196]
[1723563545522,0.0411852,146.07,146.02,0.50196]
[1723563545838,6.8475,146.04,146.0,6.0465]
[1723563546547,20.0411852,146.07,146.0,6.0465]
[1723563546715,20.0,146.06,146.0,6.0465]
[1723563546914,6.8465,146.06,146.0,6.0465]
[1723563547210,26.847,146.05,146.01,45.12549]
[1723563547608,0.0411852,146.07,146.02,0.12549]
[1723563547848,0.0411852,146.07,146.02,0.37647]
[1723563548147,6.8871852,146.07,146.02,0.37647]
[1723563548316,6.8465,146.06,146.02,0.12549]
[1723563548641,6.8872852,146.07,146.02,0.12549]
[1723563548845,6.8872852,146.07,146.02,0.37647]
[1723563549141,6.8466,146.06,146.02,0.25098]
[1723563549351,6.8466,146.06,146.02,0.12549]
[1723563550345,0.0411852,146.07,146.02,0.12549]
[1723563550548,0.0411852,146.07,146.02,0.37647]
[1723563550549,20.0411852,146.07,146.02,0.37647]
[1723563550724,20.0411852,146.07,146.03,0.25098]
[1723563550911,20.0411852,146.07,146.04,0.12549]
[1723563551116,0.0411852,146.07,146.04,0.12549]
[1723563551967,6.8872852,146.07,146.03,0.12549]
[1723563552668,0.0411852,146.07,146.03,0.12549]
[1723563552879,0.0411852,146.07,146.04,0.12549]
[1723563553168,0.0411852,146.07,146.04,0.37647]
[1723563553535,0.0411852,146.07,146.05,0.12549]
[1723563554342,6.8873852,146.07,146.02,0.12549]
[1723563554538,6.8873852,146.07,146.02,0.50196]
[1723563555335,0.0411852,146.07,146.02,0.50196]
[1723563556038,6.8473,146.05,146.02,0.37647]
[1723563556467,6.8473,146.05,146.0,6.0465]
[1723563556468,6.8475,146.04,146.0,6.0465]
[1723563556776,0.0411852,146.07,145.93,256.5]
[1723563556777,8.50893536,146.03,145.93,256.5]
[1723563557080,56.6377,146.05,145.96,6.1716]
[1723563557268,1.66063536,146.03,145.96,6.1716]
[1723563557434,20.0,146.04,145.96,6.1716]
[1723563557838,6.8485,146.02,145.96,6.1716]
[1723563558058,20.0,146.04,145.96,6.1716]
[1723563558266,6.8466,146.06,145.99,45.25098]
[1723563558476,20.0,146.05,146.0,0.25098]
[1723563558962,26.847,146.05,146.0,0.25098]
[1723563559456,20.0,146.05,145.99,45.25098]
[1723563559666,20.0,146.06,146.0,0.25098]
[1723563559856,26.8468,146.06,146.01,0.12549]
[1723563560059,20.0,146.06,146.01,0.12549]
[1723563560254,1.66063536,146.05,146.01,0.12549]
[1723563560563,20.0411852,146.07,146.01,0.12549]
[1723563560870,6.8469,146.05,146.01,0.12549]
[1723563561167,6.8469,146.05,145.99,45.12549]
[1723563561471,6.8475,146.04,146.0,0.12549]
[1723563561644,6.8475,146.04,145.99,45.0]
[1723563563672,6.8472,146.05,146.0,0.12549]
[1723563563971,6.8472,146.05,145.99,45.0]
[1723563564166,6.8472,146.05,146.0,0.12549]
[1723563565372,38.4068,146.06,146.0,0.12549]
[1723563565546,20.0,146.05,146.0,0.25098]
[1723563566465,6.8872852,146.07,146.0,0.25098]
[1723563566667,20.0,146.06,146.01,0.12549]
[1723563566876,20.0,146.06,146.01,0.25098]
[1723563567271,0.0411852,146.07,146.02,0.12549]
[1723563567479,0.0411852,146.07,146.02,0.37647]
[1723563568664,0.0411852,146.07,146.03,0.12549]
[1723563568978,0.0411852,146.07,146.03,6.39987]
[1723563569479,0.0411852,146.07,146.04,45.0]
[1723563572574,0.0411852,146.07,146.04,61.4542]
[1723563573283,6.8872852,146.07,146.04,61.4542]
[1723563573495,0.0411852,146.07,146.0,16.4542]
[1723563573782,6.8472,146.05,146.0,16.4542]
[1723563574281,6.8466,146.06,146.0,16.4542]
[1723563574860,6.8466,146.06,146.01,45.12549]
[1723563575266,6.847,146.05,146.01,45.12549]
[1723563575666,0.0411852,146.07,146.02,0.25098]
[1723563575984,0.0411852,146.07,146.03,0.12549]
[1723563576188,0.0411852,146.07,146.03,0.25098]
[1723563576365,6.8872852,146.07,146.03,0.25098]
[1723563576566,0.0411852,146.07,146.04,0.12549]
[1723563576771,0.0411852,146.07,146.04,0.37647]
[1723563576989,0.0411852,146.07,146.05,0.12549]
[1723563577564,0.0411852,146.07,146.02,0.12549]
[1723563577776,0.0411852,146.07,146.02,0.50196]
[1723563586175,6.8871852,146.07,146.02,0.50196]
[1723563586893,0.0411852,146.07,146.02,0.50196]
[1723563590983,0.0411852,146.07,146.05,0.12549]
[1723563591185,0.0411852,146.07,146.05,45.50196]
[1723563592721,0.0411852,146.07,146.05,0.37647]
[1723563592889,0.0411852,146.07,146.05,0.25098]
[1723563593500,6.8871852,146.07,146.04,15.1191]
[1723563594017,6.8872852,146.07,146.04,15.1191]
[1723563594503,6.8466,146.06,146.04,15.1191]
[1723563594705,17.1164,146.06,146.01,16.385]
[1723563594883,51.56,146.05,145.99,6.3481]
[1723563595084,31.56,146.03,145.99,6.3481]
[1723563595314,6.8493,146.0,145.99,6.3481]
[1723563595508,31.56,146.03,145.97,16.385]
[1723563595812,6.8488,146.01,145.97,16.385]
[1723563596215,31.56,146.01,145.95,6.3432]
[1723563597101,40.06963536,146.01,145.95,6.3432]
[1723563597406,6.8494,146.0,145.95,6.3432]
[1723563597610,6.8502,145.98,145.93,16.1774]
[1723563597785,8.51083536,145.98,145.93,16.1774]
[1723563598185,1.66063536,145.98,145.93,16.1774]
[1723563598385,6.8498,145.99,145.93,16.1774]
[1723563598811,6.8498,145.99,145.94,45.37647]
[1723563599004,6.8498,145.99,145.94,45.50196]
[1723563599915,1.66063536,145.98,145.94,45.50196]
[1723563600103,8.51043536,145.99,145.94,45.50196]
[1723563600419,6.8507,145.98,145.94,0.12549]
[1723563600593,8.51093536,145.98,145.94,0.12549]
[1723563601299,8.51093536,145.98,145.93,16.1774]
[1723563601495,6.8503,145.98,145.93,16.1774]
[1723563601694,8.51143536,145.97,145.93,16.1774]
[1723563601909,8.51143536,145.97,145.94,45.0]
[1723563602692,6.8517,145.95,145.91,6.6248]
[1723563602901,38.4117,145.95,145.9,15.5641]
[1723563603215,38.4129,145.93,145.87,6.0045]
[1723563603725,38.4135,145.91,145.86,15.5641]
[1723563603895,8.51473536,145.9,145.83,6.0045]
[1723563604095,1.66063536,145.89,145.83,6.0045]
[1723563604311,38.4136,145.91,145.83,6.0045]
[1723563604918,31.56,145.91,145.83,6.0045]
[1723563605125,21.66063536,145.96,145.83,6.0045]
[1723563605126,31.56,145.93,145.83,6.0045]
[1723563605487,20.0,145.92,145.83,6.0045]
[1723563605687,20.0,145.92,145.84,0.12549]
[1723563605901,20.0,145.92,145.84,45.50196]
[1723563606114,37.5758,145.97,145.84,77.06196]
[1723563606315,31.56,145.97,145.84,77.06196]
[1723563606525,31.56,145.97,145.86,0.12549]
[1723563606821,31.56,145.97,145.89,6.1735]
[1723563606822,38.4107,145.97,145.89,6.1735]
[1723563606988,38.4107,145.97,145.9,45.50196]
[1723563607195,6.8512,145.96,145.9,45.50196]
[1723563607992,38.4108,145.97,145.9,45.50196]
[1723563608193,6.8504,145.98,145.9,45.50196]
[1723563608696,38.69365044,145.99,145.9,45.50196]
[1723563608898,31.56,145.99,145.9,45.50196]
[1723563609295,6.8526,145.93,145.89,6.1735]
[1723563609497,6.8522,145.94,145.89,6.1735]
[1723563610219,6.8512,145.96,145.89,6.1735]
[1723563610394,6.8505,145.98,145.89,6.1735]